bitfinex/quotes_BTCUSD_20260126
["timestamp","ask_amount","ask_price","bid_price","bid_amount"]
[1769427361833,0.11366504,87845.0,87834.0,0.05]
[1769427361990,0.02954149,87846.0,87834.0,0.05]
[1769427362330,0.04186304,87848.0,87834.0,0.05]
[1769427362331,0.11366132,87845.0,87834.0,0.05]
[1769427362549,0.03179003,87844.0,87834.0,0.05]
[1769427364146,0.03179003,87844.0,87829.0,0.53311489]
[1769427364383,0.03179003,87844.0,87821.0,0.17496]
[1769427364525,0.03179003,87843.0,87824.0,0.54450129]
[1769427364709,0.03179003,87843.0,87824.0,0.53311489]
[1769427364909,0.03179003,87843.0,87825.0,0.01138627]
[1769427365128,0.03179003,87843.0,87825.0,0.54450116]
[1769427365344,0.03179003,87843.0,87825.0,0.53311489]
[1769427365704,0.03179003,87841.0,87825.0,0.53311489]
[1769427366197,0.03179003,87841.0,87824.0,0.0683179]
[1769427366420,0.03179003,87841.0,87826.0,0.53311489]
[1769427366905,0.03179003,87841.0,87826.0,0.54450103]
[1769427368126,0.03179003,87841.0,87826.0,0.60143177]
[1769427368327,0.03179003,87841.0,87826.0,0.53311489]
[1769427375305,0.03179003,87841.0,87822.0,0.01153276]
[1769427375306,0.05692278,87839.0,87822.0,0.0001461]
[1769427375454,0.03179003,87824.0,87816.0,4.667e-05]
[1769427376062,0.55772032,87822.0,87807.0,0.1482]
[1769427376259,0.03179003,87819.0,87804.0,0.0115351]
[1769427376464,0.03179003,87819.0,87806.0,0.01138874]
[1769427376685,0.03179003,87819.0,87810.0,0.06832894]
[1769427376888,0.03179003,87819.0,87811.0,0.01138809]
[1769427377094,0.03179003,87819.0,87811.0,0.06832823]
[1769427377423,0.03179003,87819.0,87807.0,0.06833126]
[1769427377627,0.03179003,87819.0,87808.0,0.05694215]
[1769427377818,0.03179003,87819.0,87807.0,0.01138861]
[1769427378031,0.03179003,87819.0,87808.0,0.01138848]
[1769427378798,0.03179003,87819.0,87807.0,0.06833132]
[1769427379224,0.37193563,87820.0,87807.0,0.06833132]
[1769427379422,0.02442971,87819.0,87806.0,0.01138874]
[1769427379757,0.02442971,87816.0,87804.0,0.06847988]
[1769427379979,0.02442971,87816.0,87804.0,0.0115351]
[1769427380330,0.02442971,87816.0,87804.0,0.0001461]
[1769427380942,0.55749562,87811.0,87804.0,0.0001461]
[1769427381260,0.02442971,87810.0,87804.0,0.0001461]
[1769427384385,0.39846287,87811.0,87804.0,0.0001461]
[1769427384586,0.39846287,87811.0,87796.0,0.0001461]
[1769427384817,0.01138679,87821.0,87796.0,0.0001461]
[1769427384818,0.50994351,87803.0,87796.0,0.0001461]
[1769427387992,0.53437322,87803.0,87796.0,0.0001461]
[1769427388785,0.53437322,87803.0,87787.0,0.0001461]
[1769427388786,0.50994351,87803.0,87787.0,0.0001461]
[1769427389005,0.0001461,87796.0,87787.0,0.0001461]
[1769427389213,0.0001461,87796.0,87787.0,0.0115373]
[1769427389411,0.50994351,87803.0,87787.0,0.0115373]
[1769427389812,0.50994351,87803.0,87787.0,0.06849324]
[1769427390020,0.50994351,87803.0,87787.0,0.06834714]
[1769427390220,0.50994351,87803.0,87787.0,0.0113912]
[1769427390421,0.50994351,87803.0,87786.0,0.01139133]
[1769427390583,0.53437322,87803.0,87785.0,0.05570001]
[1769427390784,0.53437322,87803.0,87786.0,0.01139133]
[1769427390988,0.53437322,87803.0,87789.0,0.01139094]
[1769427391551,0.50994351,87803.0,87791.0,0.01139068]
[1769427391737,0.50994351,87803.0,87793.0,0.01139042]
[1769427391938,0.50994351,87803.0,87794.0,0.0113903]
[1769427392558,0.50994351,87803.0,87793.0,0.06834235]
[1769427393344,0.50994351,87803.0,87792.0,0.06834284]
[1769427393675,0.50994351,87803.0,87731.0,0.05695384]
[1769427393676,0.0049548,87821.0,87807.0,0.01138861]
[1769427393815,9.033e-05,87822.0,87806.0,0.02652489]
[1769427394016,9.033e-05,87822.0,87806.0,0.0287736]
[1769427394534,0.00853277,87822.0,87806.0,0.0287736]
[1769427394934,0.27252697,87820.0,87806.0,0.0287736]
[1769427395199,0.00844244,87819.0,87801.0,0.0287736]
[1769427396115,0.00844244,87819.0,87801.0,0.04016299]
[1769427396725,0.00844244,87819.0,87801.0,0.0287736]
[1769427398183,0.00844244,87819.0,87800.0,0.28391649]
[1769427398420,0.00844244,87819.0,87799.0,0.0287736]
[1769427398620,0.00844244,87819.0,87799.0,0.04016325]
[1769427398933,0.00844244,87819.0,87800.0,0.27252697]
[1769427399533,0.00844244,87819.0,87799.0,0.0287736]
[1769427402270,0.00844244,87819.0,87799.0,0.04016325]
[1769427402446,0.02988213,87819.0,87800.0,0.01138952]
[1769427402633,0.00844244,87818.0,87802.0,0.0287736]
[1769427403242,0.00844244,87818.0,87802.0,0.06833534]
[1769427403443,0.00844244,87818.0,87803.0,0.09710793]
[1769427403646,0.00844244,87818.0,87805.0,0.0287736]
[1769427403855,0.00844244,87818.0,87805.0,0.04016247]
[1769427404233,0.00844244,87818.0,87805.0,0.0287736]
[1769427412332,0.00844244,87818.0,87800.0,0.27271317]
[1769427412954,0.00844244,87818.0,87800.0,0.29631976]
[1769427416161,0.01493661,87817.0,87800.0,0.29631976]
[1769427416312,0.00844244,87816.0,87800.0,0.29631976]
[1769427421661,0.00844244,87816.0,87802.0,0.01138926]
[1769427421872,0.02304916,87822.0,87802.0,0.01138926]
[1769427422111,0.00844244,87820.0,87805.0,0.01138887]
[1769427422310,9.033e-05,87822.0,87810.0,0.27271317]
[1769427422509,0.11353282,87821.0,87812.0,0.02360659]
[1769427422709,9.033e-05,87822.0,87814.0,0.02360659]
[1769427422928,0.225672,87835.0,87814.0,0.02360659]
[1769427423114,0.225672,87832.0,87814.0,0.02360659]
[1769427423377,8.442e-05,87830.0,87814.0,0.02360659]
[1769427423589,8.442e-05,87828.0,87814.0,0.02360659]
[1769427423881,0.11353501,87827.0,87814.0,0.02360659]
[1769427425387,0.11353501,87827.0,87814.0,0.56047429]
[1769427425590,8.442e-05,87834.0,87818.0,0.58408088]
[1769427425910,0.11359348,87833.0,87821.0,0.02360659]
[1769427426246,0.2449037,87839.0,87820.0,0.28410009]
[1769427426247,0.2449037,87839.0,87825.0,0.02360659]
[1769427426448,0.11354712,87838.0,87825.0,0.02360659]
[1769427426649,0.11354712,87837.0,87825.0,0.02360659]
[1769427426880,0.11354712,87836.0,87825.0,0.02360659]
[1769427427057,0.0002037,87839.0,87825.0,0.02360659]
[1769427427273,0.11354663,87838.0,87825.0,0.02360659]
[1769427427462,0.11354663,87837.0,87825.0,0.02360659]
[1769427427677,0.0002037,87839.0,87825.0,0.02360659]
[1769427427831,0.11351169,87838.0,87825.0,0.02360659]
[1769427428050,0.0002037,87839.0,87825.0,0.02360659]
[1769427431055,0.0002037,87839.0,87830.0,0.58408088]
[1769427431193,0.0002037,87839.0,87830.0,0.58417121]
[1769427431927,0.0002037,87839.0,87830.0,0.02369692]
[1769427434138,0.0002037,87839.0,87830.0,9.033e-05]
[1769427442393,0.0002037,87839.0,87819.0,0.175]
[1769427442524,0.03290013,87837.0,87820.0,0.27271317]
[1769427442978,0.03290013,87837.0,87821.0,0.02112336]
[1769427444194,0.03290013,87837.0,87820.0,0.86180676]
[1769427444960,0.02493223,87837.0,87821.0,0.60048038]
[1769427445151,0.02493223,87837.0,87822.0,0.01998399]
[1769427445354,0.02493223,87837.0,87822.0,0.62046424]
[1769427445548,0.02493223,87837.0,87822.0,0.60048025]
[1769427446184,0.02493223,87837.0,87823.0,0.03137029]
[1769427446390,0.02493223,87837.0,87823.0,0.60907735]
[1769427446594,0.02493223,87837.0,87823.0,0.58909359]
[1769427446787,0.02493223,87837.0,87824.0,0.01998353]
[1769427447378,0.000326,87839.0,87825.0,0.58909359]
[1769427449001,0.000326,87839.0,87826.0,0.02112082]
[1769427451554,0.0001223,87839.0,87826.0,0.02112082]
[1769427451760,0.0004084,87839.0,87826.0,0.02112082]
[1769427454190,0.11354604,87838.0,87826.0,0.02112082]
[1769427454390,0.0004084,87839.0,87826.0,0.02112082]
[1769427454577,0.11354604,87838.0,87826.0,0.02112082]
[1769427454777,0.02534063,87839.0,87826.0,0.02112082]
[1769427455096,0.11354604,87838.0,87826.0,0.02112082]
[1769427455306,0.11354604,87837.0,87826.0,0.02112082]
[1769427455507,0.02534063,87839.0,87826.0,0.02112082]
[1769427455742,0.11360015,87838.0,87826.0,0.02112082]
[1769427455941,0.11360015,87837.0,87826.0,0.02112082]
[1769427456147,0.02493223,87838.0,87826.0,0.02112082]
[1769427456357,0.11361324,87837.0,87826.0,0.02112082]
[1769427456886,0.13854547,87837.0,87820.0,0.27271317]
[1769427457095,0.11361324,87836.0,87820.0,0.27271317]
[1769427457302,0.02493223,87836.0,87820.0,0.27271317]
[1769427459148,0.02493223,87836.0,87821.0,0.01998186]
[1769427460310,0.11364237,87835.0,87821.0,0.01998186]
[1769427460536,0.02493223,87836.0,87821.0,0.01998186]
[1769427460537,0.02493223,87836.0,87821.0,0.60907545]
[1769427460730,0.11364237,87835.0,87821.0,0.58909359]
[1769427460930,0.02493223,87836.0,87821.0,0.58909359]
[1769427461136,0.02493223,87836.0,87822.0,0.01998107]
[1769427461137,0.11364237,87835.0,87822.0,0.01998107]
[1769427461309,0.02493223,87836.0,87822.0,0.01998107]
[1769427461511,0.11364174,87835.0,87822.0,0.01998107]
[1769427461832,0.02507033,87835.0,87822.0,0.01998107]
[1769427463117,0.02507033,87835.0,87822.0,0.60907466]
[1769427463356,0.02507033,87835.0,87822.0,0.58909359]
[1769427463612,0.02507033,87835.0,87823.0,0.01998045]
[1769427469913,0.00969831,87823.0,87805.0,0.01138887]
[1769427470209,0.02259735,87821.0,87808.0,0.06833069]
[1769427470391,0.02259735,87821.0,87808.0,0.01138848]
[1769427471407,0.02259735,87821.0,87809.0,0.01138835]
[1769427471610,0.02259735,87821.0,87810.0,0.01138822]
[1769427471793,0.02259735,87821.0,87809.0,0.01138835]
[1769427471994,0.02259735,87821.0,87810.0,0.27259548]
[1769427473461,0.02259735,87821.0,87810.0,0.2839837]
[1769427473664,0.02259735,87821.0,87810.0,0.34092453]
[1769427474227,0.02259735,87821.0,87811.0,0.01138809]
[1769427475372,0.02259735,87821.0,87811.0,0.0683282]
[1769427475916,0.02259735,87821.0,87812.0,0.01138796]
[1769427476362,0.02259735,87821.0,87811.0,0.01138809]
[1769427476562,0.02259735,87821.0,87812.0,0.01138796]
[1769427477138,0.02259735,87821.0,87812.0,0.06832743]
[1769427478373,0.02259735,87821.0,87813.0,0.05693881]
[1769427478574,0.0001381,87829.0,87823.0,0.01138653]
[1769427478996,0.0001381,87829.0,87823.0,0.06831922]
[1769427479344,0.0001381,87829.0,87820.0,0.63186976]
[1769427479501,0.0001381,87829.0,87821.0,0.01138679]
[1769427479684,0.0001381,87829.0,87820.0,0.5863223]
[1769427480092,0.0001381,87829.0,87820.0,0.57493538]
[1769427480287,0.0001381,87829.0,87820.0,0.5863223]
[1769427480488,0.0001381,87829.0,87821.0,0.01138679]
[1769427482233,0.0001381,87829.0,87820.0,0.5863223]
[1769427482583,0.0001381,87829.0,87820.0,0.57493538]
[1769427482781,0.9984381,87829.0,87820.0,0.5863223]
[1769427483606,0.99823571,87829.0,87820.0,0.5863223]
[1769427484244,0.99823571,87829.0,87820.0,0.57493538]
[1769427485398,0.99823571,87829.0,87818.0,0.19770964]
[1769427485719,0.99823571,87829.0,87818.0,0.23021354]
[1769427486028,0.99823571,87829.0,87819.0,0.01138705]
[1769427486228,0.99823571,87829.0,87818.0,0.20909682]
[1769427486429,0.99823571,87829.0,87818.0,0.22048401]
[1769427486613,0.99823571,87829.0,87819.0,0.02277411]
[1769427487566,0.09982357,87828.0,87818.0,0.17496]
[1769427488721,0.99823571,87829.0,87818.0,0.17496]
[1769427489316,0.99823571,87829.0,87818.0,0.18634718]
[1769427490215,0.99823571,87829.0,87819.0,0.01138705]
[1769427490375,0.99823571,87829.0,87818.0,0.24328286]
[1769427490893,0.99823571,87829.0,87818.0,0.18634718]
[1769427491800,0.01248719,87828.0,87819.0,0.01138705]
[1769427491940,0.99823571,87829.0,87822.0,0.0683196]
[1769427492145,0.99792094,87829.0,87822.0,0.0683196]
[1769427492341,0.99792094,87829.0,87823.0,0.01138653]
[1769427492585,0.99792094,87829.0,87822.0,0.01138666]
[1769427492997,0.99792094,87829.0,87823.0,0.01138653]
[1769427493503,0.99792094,87829.0,87822.0,0.06831994]
[1769427493706,0.99792094,87829.0,87822.0,0.01138666]
[1769427494090,0.99792094,87829.0,87820.0,0.01138692]
[1769427494253,0.99792094,87829.0,87821.0,0.01138679]
[1769427494651,0.99792094,87829.0,87820.0,0.01138692]
[1769427495588,0.99792094,87829.0,87819.0,0.27259548]
[1769427496525,0.99792094,87829.0,87819.0,0.28398253]
[1769427499446,0.7963231,87829.0,87819.0,0.28398253]
[1769427499643,0.79600833,87829.0,87819.0,0.28398253]
[1769427500006,0.79600833,87829.0,87820.0,0.02277385]
[1769427502776,0.79600833,87829.0,87819.0,0.27259548]
[1769427502920,0.79600833,87829.0,87818.0,0.17496]
[1769427504323,0.79600833,87829.0,87822.0,0.01138666]
[1769427504532,0.79600833,87829.0,87823.0,0.01138653]
[1769427504725,0.79600833,87829.0,87822.0,0.0683198]
[1769427504947,0.79600833,87829.0,87823.0,0.01138653]
[1769427505732,0.79600833,87829.0,87822.0,0.0683198]
[1769427506169,0.79600833,87829.0,87821.0,0.63634972]
[1769427506831,0.79600833,87829.0,87821.0,0.64773651]
[1769427506995,0.79600833,87829.0,87822.0,0.01138666]
[1769427507165,0.79600833,87829.0,87821.0,0.64773651]
[1769427507899,0.79600833,87829.0,87822.0,0.01138666]
[1769427508304,0.79600833,87829.0,87821.0,0.64773651]
[1769427508765,0.79569356,87829.0,87821.0,0.64773651]
[1769427509532,0.79569356,87829.0,87821.0,0.57941593]
[1769427509933,0.000148,87838.0,87823.0,0.55651911]
[1769427510143,0.000148,87838.0,87820.0,0.01138692]
[1769427510144,0.53819989,87837.0,87824.0,0.02289682]
[1769427512293,0.35016136,87837.0,87824.0,0.02289682]
[1769427513968,0.000148,87838.0,87827.0,0.01138602]
[1769427514169,0.000148,87846.0,87839.0,0.02289682]
[1769427514387,0.00024368,87846.0,87839.0,0.02289682]
[1769427524766,0.37636015,87855.0,87839.0,0.02289682]
[1769427525874,0.37636015,87855.0,87840.0,0.27259548]
[1769427526074,0.37636015,87855.0,87841.0,0.02289682]
[1769427528683,0.37636015,87855.0,87840.0,9.568e-05]
[1769427528884,0.02418932,87852.0,87840.0,9.568e-05]
[1769427529082,0.43383806,87851.0,87840.0,9.568e-05]
[1769427530141,0.45802738,87851.0,87840.0,9.568e-05]
[1769427530544,0.43383806,87849.0,87840.0,9.568e-05]
[1769427532876,0.02418932,87846.0,87833.0,0.000148]
[1769427533021,0.43374334,87845.0,87833.0,0.000148]
[1769427541797,0.43374334,87850.0,87833.0,0.000148]
[1769427545546,0.45793266,87850.0,87833.0,0.000148]
[1769427554543,0.52968311,87850.0,87833.0,0.000148]
[1769427554843,0.45793266,87850.0,87833.0,0.000148]
[1769427563175,0.45793266,87850.0,87834.0,0.02452324]
[1769427563388,0.45793266,87850.0,87835.0,0.02276996]
[1769427563660,0.02418932,87850.0,87835.0,0.57217695]
[1769427563791,0.02418932,87850.0,87835.0,0.54940699]
[1769427564590,0.43374334,87856.0,87835.0,0.57393023]
[1769427564837,0.43374334,87854.0,87835.0,0.57393023]
[1769427565039,0.43383902,87854.0,87836.0,0.0227697]
[1769427566032,0.45823337,87854.0,87836.0,0.0227697]
[1769427566646,0.00600011,87853.0,87836.0,0.0167697]
[1769427566851,0.43374334,87849.0,87834.0,0.01138511]
[1769427567049,0.45813769,87849.0,87835.0,0.02276996]
[1769427567445,0.1304623,87863.0,87835.0,0.02276996]
[1769427567446,0.000148,87864.0,87860.0,0.00015368]
[1769427567646,0.03457796,87878.0,87860.0,0.00015368]
[1769427567647,0.03457796,87878.0,87866.0,0.54940699]
[1769427567861,0.03457796,87878.0,87866.0,0.57393023]
[1769427567862,0.00024363,87873.0,87866.0,0.57393023]
[1769427568760,9.563e-05,87873.0,87866.0,0.57393023]
[1769427570283,0.02340437,87888.0,87866.0,0.57393023]
[1769427570518,0.00090565,87885.0,87866.0,0.57393023]
[1769427573614,0.00090565,87885.0,87870.0,0.27252706]
[1769427573808,0.00090565,87885.0,87867.0,0.02452324]
[1769427574347,0.00090565,87885.0,87868.0,0.02452324]
[1769427575072,0.00090565,87885.0,87868.0,0.0113807]
[1769427575230,0.0253,87895.0,87873.0,0.02452324]
[1769427575433,0.0253,87895.0,87876.0,0.02452324]
[1769427575601,0.00090565,87894.0,87876.0,0.02452324]
[1769427578091,0.00090565,87893.0,87876.0,0.02452324]
[1769427581536,0.02439435,87894.0,87876.0,0.02452324]
[1769427581537,0.00090565,87892.0,87876.0,0.02452324]
[1769427581716,0.00090565,87891.0,87876.0,0.02452324]
[1769427581928,0.00090565,87891.0,87870.0,0.27252706]
[1769427582104,0.0253,87891.0,87871.0,0.57393023]
[1769427582310,0.27343271,87890.0,87871.0,0.57393023]
[1769427582514,0.02439435,87889.0,87871.0,0.57393023]
[1769427582702,0.0253,87889.0,87871.0,0.57393023]
[1769427584560,0.0253,87889.0,87871.0,0.58531054]
[1769427584803,0.00090565,87897.0,87873.0,0.54940699]
[1769427585017,0.00090565,87897.0,87876.0,0.01137967]
[1769427585018,0.02454175,87896.0,87876.0,0.01137967]
[1769427585231,0.02454175,87896.0,87877.0,0.57393023]
[1769427586948,0.00090565,87895.0,87877.0,0.54940699]
[1769427587158,0.00090565,87893.0,87877.0,0.54940699]
[1769427587340,0.02439435,87892.0,87877.0,0.54940699]
[1769427592447,0.02439435,87892.0,87878.0,0.01881377]
[1769427595862,0.02439435,87892.0,87873.0,0.58719784]
[1769427596110,0.02439435,87892.0,87873.0,0.56724786]
[1769427597259,0.02439435,87892.0,87874.0,0.01995082]
[1769427597613,0.02439435,87892.0,87874.0,0.58719868]
[1769427597817,0.02439435,87892.0,87874.0,0.56724786]
[1769427598131,0.0253,87892.0,87875.0,0.01995021]
[1769427601818,0.0253,87892.0,87874.0,0.56724786]
[1769427602020,0.0253,87892.0,87875.0,0.58748453]
[1769427602219,0.0253,87892.0,87875.0,0.56724786]
[1769427603429,0.0253,87892.0,87876.0,0.02275934]
[1769427605482,0.0231766,87891.0,87876.0,0.02275934]
[1769427608055,0.27227654,87890.0,87876.0,0.02275934]
[1769427608258,0.0231766,87889.0,87876.0,0.02275934]
[1769427618458,0.0231766,87889.0,87870.0,0.86758623]
[1769427618957,0.0231766,87889.0,87871.0,0.59530969]
[1769427630430,0.0231766,87889.0,87871.0,0.59540939]
[1769427631949,0.04556,87892.0,87873.0,0.59530969]
[1769427631950,0.02395138,87892.0,87873.0,0.59530969]
[1769427632485,0.02395138,87892.0,87874.0,0.01992342]
[1769427633172,0.02395138,87892.0,87875.0,0.59530969]
[1769427633379,0.02395138,87892.0,87877.0,0.59530969]
[1769427633580,0.02395138,87892.0,87878.0,0.01995148]
[1769427634381,0.04556,87893.0,87882.0,0.59530969]
[1769427634578,0.04556,87893.0,87880.0,0.27227654]
[1769427634579,0.0921748,87898.0,87884.0,0.02251118]
[1769427634779,0.0921748,87898.0,87881.0,0.01137902]
[1769427634780,0.0921748,87898.0,87886.0,0.61782087]
[1769427635003,0.0921748,87898.0,87886.0,0.52386906]
[1769427636350,0.02435138,87904.0,87894.0,0.01137734]
[1769427636351,0.0004,87904.0,87894.0,0.01137734]
[1769427636485,0.0004,87904.0,87888.0,0.27227654]
[1769427636486,0.0004,87907.0,87892.0,0.59530969]
[1769427636684,0.0004,87907.0,87894.0,0.61411642]
[1769427636902,0.0004,87907.0,87894.0,0.59530969]
[1769427638575,0.0004,87907.0,87896.0,0.59530969]
[1769427638753,0.0001461,87911.0,87901.0,0.59530969]
[1769427642550,0.0001461,87911.0,87902.0,0.61782087]
[1769427642827,0.0001461,87911.0,87903.0,0.01137617]
[1769427642973,0.0001461,87911.0,87903.0,0.59530969]
[1769427647956,0.0001461,87911.0,87900.0,0.27227654]
[1769427648575,0.0001461,87911.0,87901.0,0.0210313]
[1769427656876,0.0001461,87911.0,87899.0,0.02103545]
[1769427657511,0.0001461,87911.0,87900.0,0.27211353]
[1769427657708,0.0001461,87911.0,87901.0,0.02103545]
[1769427659553,0.35480097,87918.0,87901.0,0.04429256]
[1769427659920,0.35480097,87918.0,87901.0,0.02103545]
[1769427660126,0.35480097,87918.0,87902.0,0.02325711]
[1769427660333,0.35480097,87918.0,87903.0,0.02103504]
[1769427661746,0.35480097,87918.0,87902.0,0.02325711]
[1769427667382,0.35480097,87918.0,87903.0,0.02275235]
[1769427667789,0.35480097,87918.0,87904.0,0.02275209]
[1769427671103,0.0004,87919.0,87894.0,0.09077883]
[1769427671281,0.37865678,87909.0,87893.0,0.09077883]
[1769427671904,0.37865678,87909.0,87893.0,0.11403594]
[1769427674710,0.38643024,87909.0,87894.0,0.01988762]
[1769427677119,0.37865678,87909.0,87894.0,0.01988762]
[1769427677319,0.37865678,87909.0,87895.0,0.02475524]
[1769427677524,0.37865678,87909.0,87896.0,0.01988735]
[1769427681434,0.37865678,87905.0,87892.0,0.00013997]
[1769427681626,0.27211353,87906.0,87889.0,0.0001461]
[1769427681627,0.38643024,87901.0,87889.0,0.0001461]
[1769427681851,0.00777346,87896.0,87880.0,0.0001461]
[1769427682054,0.01137708,87896.0,87880.0,0.0001461]
[1769427682287,0.06404631,87896.0,87880.0,0.0001461]
[1769427682490,0.00777346,87894.0,87880.0,0.0001461]
[1769427682692,0.01137708,87896.0,87880.0,0.0001461]
[1769427682888,5.881e-05,87894.0,87880.0,0.0001461]
[1769427683086,5.881e-05,87894.0,87874.0,0.00113908]
[1769427683087,5.881e-05,87894.0,87874.0,0.04775985]
[1769427683396,5.881e-05,87894.0,87875.0,0.02499999]
[1769427683590,0.06826264,87896.0,87875.0,0.02499999]
[1769427683774,5.881e-05,87894.0,87875.0,0.02499999]
[1769427684535,0.27211353,87890.0,87875.0,0.02499999]
[1769427684788,5.881e-05,87889.0,87870.0,0.0272488]
[1769427684951,5.881e-05,87889.0,87870.0,0.29936233]
[1769427685150,5.881e-05,87889.0,87871.0,0.0272488]
[1769427685354,5.881e-05,87889.0,87871.0,0.02839528]
[1769427685668,5.881e-05,87889.0,87872.0,0.0272488]
[1769427685839,5.881e-05,87889.0,87873.0,0.00114645]
[1769427686045,5.881e-05,87889.0,87874.0,0.0272488]
[1769427686244,5.881e-05,87889.0,87875.0,0.02839522]
[1769427686787,0.01988746,87899.0,87875.0,0.02839522]
[1769427686994,5.881e-05,87897.0,87876.0,0.0272488]
[1769427687210,5.881e-05,87897.0,87875.0,0.59987279]
[1769427687211,5.881e-05,87896.0,87878.0,0.0272488]
[1769427687497,5.881e-05,87896.0,87879.0,0.00229917]
[1769427687661,5.881e-05,87896.0,87879.0,0.0272488]
[1769427687861,5.881e-05,87896.0,87880.0,0.00229906]
[1769427688286,0.01587528,87896.0,87880.0,0.00229906]
[1769427688467,0.01587528,87896.0,87880.0,0.02954786]
[1769427689387,5.881e-05,87896.0,87880.0,0.02954786]
[1769427689589,5.881e-05,87896.0,87881.0,0.02275804]
[1769427690808,0.01994627,87896.0,87881.0,0.02275804]
[1769427693181,5.881e-05,87895.0,87881.0,0.02275804]
[1769427693583,0.03126467,87895.0,87881.0,0.02275804]
[1769427693767,5.881e-05,87894.0,87881.0,0.02275804]
[1769427694114,5.881e-05,87890.0,87871.0,0.0272488]
[1769427694318,5.881e-05,87889.0,87871.0,0.0272488]
[1769427694567,0.02850378,87889.0,87871.0,0.0272488]
[1769427697575,0.02850378,87889.0,87872.0,0.62597517]
[1769427697780,0.02850378,87889.0,87873.0,0.0272488]
[1769427699367,0.02850378,87889.0,87874.0,0.0272488]
[1769427703744,0.02844529,87888.0,87874.0,0.0272488]
[1769427703924,5.881e-05,87889.0,87874.0,0.0272488]
[1769427706863,0.02850378,87889.0,87874.0,0.0272488]
[1769427709043,5.881e-05,87888.0,87874.0,0.0272488]
[1769427713072,0.02844497,87889.0,87875.0,0.5660568]
[1769427713274,0.02844497,87889.0,87876.0,0.03174604]
[1769427714974,0.02850378,87889.0,87876.0,0.03174604]
[1769427723682,0.27230439,87880.0,87868.0,0.0001565]
[1769427724102,5.881e-05,87884.0,87868.0,0.0001565]
[1769427724235,5.881e-05,87884.0,87865.0,0.02411339]
[1769427724619,5.881e-05,87884.0,87866.0,0.02411339]
[1769427725057,0.06881696,87887.0,87866.0,0.02411339]
[1769427725271,0.09439509,87887.0,87866.0,0.02411339]
[1769427725867,0.08301685,87887.0,87866.0,0.02411339]
[1769427726070,0.01419989,87887.0,87866.0,0.02411339]
[1769427726270,0.01137811,87888.0,87866.0,0.02411339]
[1769427726472,0.01419989,87887.0,87866.0,0.02411339]
[1769427727052,0.02557813,87887.0,87867.0,0.02499999]
[1769427727853,0.05689219,87886.0,87867.0,0.02499999]
[1769427728076,0.01137863,87884.0,87867.0,0.02499999]
[1769427728252,0.27230439,87880.0,87867.0,0.02499999]
[1769427728455,0.27230439,87880.0,87859.0,0.0001526]
[1769427728456,0.27230439,87880.0,87861.0,0.02499999]
[1769427729702,0.27230439,87880.0,87862.0,0.02499999]
[1769427731907,0.01419989,87879.0,87862.0,0.02499999]
[1769427732335,0.01419989,87879.0,87863.0,0.02499999]
[1769427734934,0.01419989,87879.0,87865.0,0.02499999]
[1769427735187,0.01419989,87879.0,87867.0,0.02499999]
[1769427735476,0.01419989,87879.0,87865.0,0.5660568]
[1769427735477,0.01419989,87888.0,87868.0,0.03182997]
[1769427736881,0.01419989,87888.0,87868.0,0.00682998]
[1769427737090,0.01419989,87888.0,87869.0,0.03296795]
[1769427737291,0.08246887,87888.0,87869.0,0.03296795]
[1769427737469,0.14392054,87888.0,87869.0,0.03296795]
[1769427737668,0.01137824,87887.0,87869.0,0.03296795]
[1769427737881,0.01419989,87886.0,87869.0,0.03296795]
[1769427738065,0.01419989,87886.0,87869.0,0.62461853]
[1769427738269,0.01419989,87887.0,87869.0,0.61665057]
[1769427738470,0.02365737,87886.0,87869.0,0.61665057]
[1769427738792,0.01419989,87885.0,87869.0,0.61665057]
[1769427739020,0.02365737,87886.0,87869.0,0.61665057]
[1769427739211,0.02365737,87884.0,87869.0,0.68069795]
[1769427739413,0.01419989,87883.0,87869.0,0.68069795]
[1769427739697,0.01419989,87883.0,87869.0,0.61665057]
[1769427744812,0.04556,87889.0,87873.0,0.02289307]
[1769427745014,0.04556,87889.0,87874.0,0.51277081]
[1769427745967,0.04556,87889.0,87875.0,0.02289307]
[1769427746165,0.04556,87889.0,87875.0,0.58582577]
[1769427751590,0.07400497,87889.0,87875.0,0.58582577]
[1769427752777,0.09766234,87889.0,87875.0,0.58582577]
[1769427753920,0.07400497,87889.0,87875.0,0.58582577]
[1769427754132,0.02365737,87888.0,87875.0,0.58582577]
[1769427757100,0.02365737,87888.0,87876.0,0.02159958]
[1769427759644,0.03059552,87888.0,87876.0,0.60789228]
[1769427759981,0.02365737,87888.0,87876.0,0.5862927]
[1769427760960,0.00626224,87887.0,87876.0,0.5862927]
[1769427763842,0.03510684,87887.0,87876.0,0.5862927]
[1769427764869,0.11261854,87890.0,87876.0,0.5862927]
[1769427765117,0.11261854,87890.0,87877.0,0.05862927]
[1769427765295,0.02365737,87889.0,87877.0,0.05862927]
[1769427766623,0.02844497,87889.0,87877.0,0.05862927]
[1769427766838,0.02365737,87888.0,87877.0,0.05862927]
[1769427768216,0.02365737,87888.0,87870.0,0.5862927]
[1769427769572,0.02844561,87887.0,87870.0,0.5862927]
[1769427769776,0.05322528,87887.0,87870.0,0.5862927]
[1769427773635,0.05322528,87887.0,87870.0,0.27231072]
[1769427773817,0.05322528,87887.0,87871.0,0.62040967]
[1769427774017,0.05322528,87887.0,87872.0,0.71179725]
[1769427775246,0.05322528,87887.0,87872.0,0.62040967]
[1769427777564,0.05322528,87887.0,87872.0,0.42679958]
[1769427778390,0.02477967,87887.0,87872.0,0.42679958]
[1769427782767,0.02844497,87889.0,87873.0,0.0076656]
[1769427782980,0.02844497,87889.0,87874.0,0.62040967]
[1769427783241,0.02860809,87892.0,87872.0,0.0076656]
[1769427783378,0.0001641,87892.0,87875.0,0.62040967]
[1769427784209,0.02494377,87892.0,87875.0,0.62040967]
[1769427784450,0.02844432,87891.0,87875.0,0.62040967]
[1769427785308,0.05322399,87891.0,87875.0,0.62040967]
[1769427785626,0.02477967,87890.0,87875.0,0.62040967]
[1769427785853,0.0001641,87892.0,87875.0,0.62040967]
[1769427785854,0.02477967,87888.0,87875.0,0.62040967]
[1769427785978,0.02844561,87887.0,87875.0,0.62040967]
[1769427787478,0.02844561,87887.0,87876.0,0.02158825]
[1769427800822,0.02363913,87886.0,87870.0,0.88937248]
[1769427801029,0.02844626,87885.0,87868.0,0.62472736]
[1769427801236,0.02363913,87885.0,87868.0,0.62472736]
[1769427801413,0.02844658,87884.0,87868.0,0.62472736]
[1769427801807,0.02844658,87884.0,87870.0,0.27231072]
[1769427802015,0.02844658,87884.0,87870.0,0.88937248]
[1769427803650,0.02844658,87884.0,87870.0,0.61706176]
[1769427803867,0.06355169,87884.0,87870.0,0.61706176]
[1769427804628,0.02844658,87884.0,87870.0,0.61706176]
[1769427811816,0.05208571,87884.0,87870.0,0.61706176]
[1769427822888,0.02844658,87884.0,87870.0,0.61706176]
[1769427823103,0.05208604,87883.0,87870.0,0.61706176]
[1769427824862,0.02363913,87879.0,87862.0,0.0001297]
[1769427825070,0.02363913,87870.0,87862.0,0.0001297]
[1769427825369,0.02363913,87869.0,87862.0,0.0001297]
[1769427826241,0.02363913,87869.0,87862.0,0.00022533]
[1769427835162,0.02405882,87876.0,87862.0,0.00022533]